Cogmind - Beta 17 @@@ ROGUE MODE // 2026.07.11 @ 19:13:03 Player: mischief_2000 Result: Destroyed by Combat Programmer with EMDS Performance ------------- Evolutions (7) 3500 Regions Visited (20) 4000 Robots Destroyed (160) 800 Value Destroyed (5477) 5477 Prototype IDs (243) 4860 Alien Tech Used (0) 0 Bonus (5309) 5309 TOTAL SCORE: 23946 Bonus ------- High Alert Combat Kills 209 Aligned with FarCom 300 Met Data Miner 300 Used Data Conduit 3000 Met Warlord at Base 500 MAIN.C Attacked Warlord 500 Pursued by Intercept 500 Cogmind --------- Core Integrity 0/1300 Matter 197/300 Energy 50/100 System Corruption 7% Temperature Cool (73) Movement Core (200) Ox3 Location -3/Research Parts ------- > --- POWER (2) -------- (None) > --- PROPULSION (8) --- (None) > --- UTILITY (7) ------ (None) > --- WEAPON (4) ------- RU-N14's Throwing Claymores v3 > --- INVENTORY (5) ---- Backup Power III Stasis Canceller KE Penetrator Plasma Cutter Peak State ------------ > --- POWER ------------ Particle Reactor Micro Antimatter Reactor > --- PROPULSION ------- Gravmag Array Gravmag Array Gravmag Array Improved Linear Gravjet > --- UTILITY ---------- Large Storage Unit Advanced Visual Processing Unit Improved Transmission Jammer Experimental Cloaking Device Hacking Suite Makeshift Hacking Suite > --- WEAPON ----------- Vortex Cannon Vortex Cannon Vortex Driver Vortex Driver > --- INVENTORY -------- Backup Power III Backup Power III Stasis Canceller Vortex Rail Vortex Rail KE Penetrator Vortex Catalyst Activator Plasma Cutter RU-N14's Throwing Claymores v3 Makeshift Hammer [Rating: 120] Favorites ----------- Power Light Ion Engine Engine Light Ion Engine Power Core Light Fission Core Reactor Antimatter Reactor Propulsion Light Treads Treads Light Treads Leg Enhanced Flexi-carbon Leg Wheel Compact Wheel Hover Unit Gravmag Array Flight Unit Improved VTOL Module Utility Huge Storage Unit Device Improved Heat Sink Storage Huge Storage Unit Processor Targeting Computer Hackware Hacking Suite Protection Reflective Plating Weapon Heavy Laser Energy Gun Heavy Laser Energy Cannon Neutron Cannon Ballistic Gun Gauss Rifle Ballistic Cannon Light Cannon Launcher Improved Grenade Launcher Special Weapon Plasma Cutter Impact Weapon Makeshift Hammer Build | -11 -10 -10 -10 -9 -8 -7 -7 -7 -7 -6 -6 -6 -6 -5 -5 -5 -5 -4 -4 -3 ------- Run | Yrd Mat Min Exi Min Mat Fac Low Low Dat Pro Fac Low Low Fac Upp Upp War Pro Fac Res Slots Evolved 14 | . . . . . 4 2 . . . . 2 . . 2 . . . . 2 2 Power 1 | . . . . . . . . . . . . . . . . . . . 1 . Propulsion 6 | . . . . . 1 1 . . . . 2 . . . . . . . 1 1 Utility 5 | . . . . . 1 1 . . . . . . . 2 . . . . . 1 Weapon 2 | . . . . . 2 . . . . . . . . . . . . . . . Parts Attached 131 | 7 7 1 . . 39 6 7 5 14 3 2 4 3 4 1 1 5 5 1 16 Power 13 | 1 1 . . . 3 1 . . 2 . . 1 1 . . . . . . 3 Engine 5 | 1 1 . . . 2 1 . . . . . . . . . . . . . . Core 5 | . . . . . 1 . . . 1 . . 1 1 . . . . . . 1 Reactor 3 | . . . . . . . . . 1 . . . . . . . . . . 2 Propulsion 31 | 2 1 . . . 8 3 2 2 4 1 1 . . . . . . 3 . 4 Treads 9 | 2 . . . . 5 1 . 1 . . . . . . . . . . . . Leg 4 | . . . . . . . . . 4 . . . . . . . . . . . Wheel 8 | . 1 . . . 3 2 1 1 . . . . . . . . . . . . Hover 4 | . . . . . . . . . . . . . . . . . . . . 4 Flight 6 | . . . . . . . 1 . . 1 1 . . . . . . 3 . . Utility 35 | 2 3 . . . 7 1 1 2 6 1 1 2 1 1 1 1 2 1 . 2 Device 17 | 1 . . . . 4 . . 1 6 1 . 1 1 . . . 1 . . 1 Storage 6 | 1 2 . . . . 1 . . . . 1 . . . . . . 1 . . Processor 2 | . 1 . . . . . . . . . . . . . . . . . . 1 Hackware 6 | . . . . . 2 . . . . . . . . 1 1 1 1 . . . Protection 4 | . . . . . 1 . 1 1 . . . 1 . . . . . . . . Artifact . | . . . . . . . . . . . . . . . . . . . . . Weapon 52 | 2 2 1 . . 21 1 4 1 2 1 . 1 1 3 . . 3 1 1 7 Energy Gun 18 | 1 2 . . . 10 . . 1 . . . 1 . 1 . . . . . 2 Energy Cannon 8 | . . . . . . . . . 2 1 . . . . . . . . 1 4 Ballistic Gun 14 | 1 . . . . 7 1 3 . . . . . . 2 . . . . . . Ballistic Cannon 4 | . . 1 . . 1 . . . . . . . 1 . . . 1 . . . Launcher 4 | . . . . . 3 . . . . . . . . . . . . . . 1 Special Weapon 3 | . . . . . . . . . . . . . . . . . 2 1 . . Impact Weapon 1 | . . . . . . . 1 . . . . . . . . . . . . . Slashing Weapon . | . . . . . . . . . . . . . . . . . . . . . Piercing Weapon . | . . . . . . . . . . . . . . . . . . . . . Special Melee Weapon . | . . . . . . . . . . . . . . . . . . . . . Unidentified Prototypes 12 | . . . . . 4 . 1 . 1 . . . . . . . 2 . . 4 Parts Lost 43 | . 3 1 . . 7 . . . 14 . 1 . . . . . . 2 . 15 Power 8 | . 1 . . . 2 . . . 1 . 1 . . . . . . 1 . 2 Propulsion 12 | . . . . . 2 . . . 5 . . . . . . . . 1 . 4 Utility 8 | . 1 . . . 1 . . . 3 . . . . . . . . . . 3 Weapon 15 | . 1 1 . . 2 . . . 5 . . . . . . . . . . 6 Highest Loss Streak 15 | . 2 1 . . 5 . . . 7 . 1 . . . . . . 2 . 15 To Critical Strikes . | . . . . . . . . . . . . . . . . . . . . . Average Backups 17 | 4 12 17 17 18 21 22 20 20 17 20 12 12 12 11 12 13 13 14 14 11 Power . | . . . . . . 1 1 1 . . . . . . 1 1 . . . 1 Propulsion 5 | 2 5 9 9 10 7 4 5 5 3 3 . 1 1 1 1 1 1 2 . . Utility 6 | . 3 4 4 4 7 8 6 6 8 13 7 7 8 7 6 6 4 2 2 1 Weapon 4 | 1 2 4 4 4 4 6 6 5 2 1 2 2 1 1 2 2 4 8 10 7 Tool/Special . | . . . . . . . . . . . . . . . . . . . . . Unused Backups 26 | . . 1 . . 13 1 . 1 . 2 1 . . 1 . . 5 . . 1 Power 1 | . . . . . . . . . . . . . . . . . 1 . . . Propulsion 4 | . . . . . 4 . . . . . . . . . . . . . . . Utility 7 | . . . . . 1 1 . . . 2 1 . . 1 . . . . . 1 Weapon 12 | . . 1 . . 8 . . 1 . . . . . . . . 2 . . . Tool/Special 2 | . . . . . . . . . . . . . . . . . 2 . . . Average Slot Usage (%) 92 | . 98 99 100 100 96 97 99 100 91 99 71 73 78 76 79 82 82 79 64 57 Engine 6 | . 13 14 14 14 6 . 6 7 1 . . . . . . . . . 7 4 Core 1 | . . . . . 2 6 . . 3 . . 3 5 5 5 5 5 3 . . Treads 9 | . 20 14 14 14 16 13 6 7 3 . . . . . . . . . . . Leg 1 | . . . . . . . . . 9 22 . . . . . . . . . . Wheel 9 | . 6 14 14 14 9 15 23 23 11 6 . . . . . . . . . . Flight 3 | . . . . . . . . . . . 19 20 20 17 17 17 17 18 26 7 Device 10 | . 9 . . . 13 7 7 7 16 23 18 13 16 17 17 13 11 10 1 4 Storage 8 | . 14 14 14 14 9 7 7 7 7 7 7 12 6 5 5 5 5 5 6 3 Processor 2 | . 4 14 14 14 . . . . . . . . . . . . . . . 3 Hackware 4 | . . . . . 2 7 7 7 3 . . . . 5 8 14 16 17 15 12 Protection 1 | . . . . . . 5 7 6 2 . . . 3 . . . . . . . Energy Gun 15 | . 23 21 14 14 26 23 3 4 6 7 6 9 13 8 5 5 4 5 . . Energy Cannon 2 | . . . . . . . . . 7 15 6 6 6 5 5 5 1 . 1 1 Ballistic Gun 6 | . 4 . . . 5 1 26 25 10 . . . . 4 11 11 11 9 . . Ballistic Cannon 1 | . . 5 14 14 . . . . . . . . 5 3 . . 2 . . . Launcher 1 | . . . . . 2 5 . . . 6 . 1 . . . . . . . . Peak Build Rating 120 | 7 8 9 12 12 37 44 47 50 85 87 93 95 94 101 105 105 111 116 79 120 Average Rating 46 | 5 7 8 10 12 31 41 45 47 60 82 88 89 90 97 103 102 105 104 72 82 On Entrance 58 | . 7 8 9 12 12 37 44 46 50 85 86 85 88 91 100 105 101 111 79 70 Avg Prop Armor Cover (%) 10 | . 13 13 12 12 14 12 6 6 6 3 . . . . . . . . . 5 Naked Turns 10 | . . . . . . . . . . . . . . . . . . . . 10 Heaviest Build 130 | 13 87 88 88 88 108 107 111 112 127 130 56 56 60 60 58 58 53 47 37 51 Greatest Support 84 | 40 40 10 10 10 32 42 42 38 84 84 60 60 60 60 60 60 60 60 30 70 Greatest Overweight (x) 9 | . 8 8 8 8 9 6 2 2 9 2 . . . . . . . . 1 2 Average Overweight (x) 2 | . 4 8 8 8 6 3 2 2 2 1 . . . . . . . . . . Largest Inventory Capacity 25 | 8 25 25 25 25 25 25 25 25 25 25 25 15 15 15 15 15 15 15 15 15 Average Capacity 22 | 7 19 25 25 25 25 25 25 25 25 25 15 15 15 15 15 15 15 15 15 14 Most Carried 25 | 8 18 18 21 22 25 25 25 25 25 25 17 15 15 15 15 15 15 15 15 15 Average Carried 20 | 4 12 17 18 21 24 24 24 25 22 24 14 14 14 13 14 15 14 14 15 12 Final Capacity 25 | 8 25 25 25 25 25 25 25 25 25 25 15 15 15 15 15 15 15 15 15 5 Final Carried 25 | 8 18 17 21 22 25 25 25 25 25 18 14 15 14 14 15 15 15 15 15 4 Class Distribution -------------------- 24% | Mutant 20% | Skirmisher 17% | Scavenger-Tank 9% | Scavenger-Skirmisher 7% | Scavenger-Gunner 5% | Hacker-Gunner 3% | Scavenger-Mutant 3% | Hacker-Skirmisher Dominant Class ---------------- Mutant | -10/Materials Mutant | -10/Mines Mutant | -10/Exiles Mutant | -9/Mines Skirmisher | -8/Materials Skirmisher | -7/Factory Scavenger-Tank | -7/Lower Caves Scavenger-Tank | -7/Lower Caves Tank | -7/Data Miner Scavenger-Tank | -6/Proximity Caves Scavenger-Mutant | -6/Factory Scavenger-Mutant | -6/Lower Caves Scavenger-Gunner | -6/Lower Caves Scavenger-Skirmisher | -5/Factory Scavenger-Gunner | -5/Upper Caves Hacker-Gunner | -5/Upper Caves Hacker-Gunner | -5/Warlord Hacker-Gunner | -4/Proximity Caves Hacker-Sprinter | -4/Factory Hacker-Mutant | -3/Research Resources | -11 -10 -10 -10 -9 -8 -7 -7 -7 -7 -6 -6 -6 -6 -5 -5 -5 -5 -4 -4 -3 ----------- Run | Yrd Mat Min Exi Min Mat Fac Low Low Dat Pro Fac Low Low Fac Upp Upp War Pro Fac Res Matter Collected 3526 | 145 333 129 . 36 995 142 110 270 392 150 63 65 18 68 36 130 . 126 . 318 Remotely . | . . . . . . . . . . . . . . . . . . . . . Salvage Created 6154 | 201 497 105 . 197 1862 156 13 402 392 256 213 284 18 138 . 159 . 238 20 1003 Parts 310 | 20 28 7 . 6 95 6 . 27 17 12 15 7 1 8 . 12 . 18 4 27 Haulers Intercepted 10 | . 1 . . . 6 . . . . . 1 . . . . . . . . 2 Recyclers Shooed 10 | . 5 1 . . 2 . . . . . . . . . . . . . . 2 Parts Field Recycled . | . . . . . . . . . . . . . . . . . . . . . Retrieved Matter . | . . . . . . . . . . . . . . . . . . . . . Parts Self-Destructed 82 | . . . . . . . . 33 . 16 . 4 . . . 12 . 17 . . Prevented 5 | . . . . . . . . 2 . 1 . . . . . 2 . . . . Parts Restored . | . . . . . . . . . . . . . . . . . . . . . Kills | -11 -10 -10 -10 -9 -8 -7 -7 -7 -7 -6 -6 -6 -6 -5 -5 -5 -5 -4 -4 -3 ------- Run | Yrd Mat Min Exi Min Mat Fac Low Low Dat Pro Fac Low Low Fac Upp Upp War Pro Fac Res Combat Hostiles Destroyed 111 | . 12 3 . 2 32 2 1 9 4 8 . 7 1 2 . 5 . 11 . 12 Guns 63 | . 12 3 . 1 22 2 . 9 2 . . 2 . . . 2 . 8 . . Cannons 17 | . . . . 1 . . . . 2 4 . 1 1 2 . 3 . 1 . 2 AOE 28 | . . . . . 10 . . . . 3 . 3 . . . . . 2 . 10 Classes Destroyed 19 | 2 4 . . . 8 . 1 1 . . . 1 . . . 1 . 1 . . Worker 5 | . . . . . 2 1 . . . . . . . . . . . . . 2 Builder 4 | . . . . . 1 . . . . . 1 . . 1 . . . . 1 . Tunneler 7 | 5 1 . . . 1 . . . . . . . . . . . . . . . Hauler 10 | . 1 . . . 6 . . . . . 1 . . . . . . . . 2 Recycler 11 | 1 . . . 2 4 . . . . . 1 . . . . . . . . 3 Minesweeper 1 | . . . . . . . . 1 . . . . . . . . . . . . Operator 4 | . . . . . 2 . . . . . 1 . . 1 . . . . . . Drone 1 | . . . . . . . . . . . . . . . . . . 1 . . Watcher 7 | . 1 . . . 5 . . . . . . . . . . . . . . 1 Swarmer 37 | . 3 1 . . 7 . . 4 . 3 . 2 . . . 3 . 10 . 4 Grunt 41 | . 9 2 . 2 14 1 . 5 . 3 . 4 . . . . . . . 1 Brawler 1 | . . . . . 1 . . . . . . . . . . . . . . . Duelist 2 | . . . . . 1 . . . . 1 . . . . . . . . . . Sentry 12 | . . . . . 7 1 . . . 1 . 1 . 1 . . . . . 1 Hunter 4 | . . . . . 1 . . . . . . . 1 1 . . . . . 1 Programmer 5 | . . . . . . . . . . . . . . . . 2 . . . 3 Heavy 1 | . . . . . 1 . . . . . . . . . . . . . . . Enhanced Grunt 4 | . . . . . . . . . 4 . . . . . . . . . . . Tracker 2 | . . . . . . . . . . . . . . . . . . . . 2 Tinkerer 1 | . . . . . . . . . . . . 1 . . . . . . . . Thief 1 | . . . . . . . 1 . . . . . . . . . . . . . Best Kill Streak 12 | 6 5 2 . 3 9 2 1 4 1 4 2 4 1 2 . 3 . 6 1 12 Combat Bots Only 11 | . 5 2 . 2 7 1 1 4 1 4 . 4 1 1 . 3 . 6 . 11 Max Kills in Single Turn 4 | 1 1 1 . 2 3 1 1 2 1 2 1 1 1 1 . 1 . 2 1 4 Gunslinging 1 | . . . . . . . . 1 . . . . . . . . . . . . Exploded 4 | . . . . . 2 . . . . 1 . 1 . . . . . 1 . 4 Melee . | . . . . . . . . . . . . . . . . . . . . . Uniques/NPCs Destroyed . | . . . . . . . . . . . . . . . . . . . . . Combat | -11 -10 -10 -10 -9 -8 -7 -7 -7 -7 -6 -6 -6 -6 -5 -5 -5 -5 -4 -4 -3 -------- Run | Yrd Mat Min Exi Min Mat Fac Low Low Dat Pro Fac Low Low Fac Upp Upp War Pro Fac Res Hostile Shots Fired 742 | . 77 8 . 3 112 30 6 26 76 26 28 52 18 2 11 30 2 53 4 178 Missed 252 | . 22 1 . 2 35 16 2 10 20 11 18 27 6 . 4 13 1 25 2 37 Hits 490 | . 55 7 . 1 77 14 4 16 56 15 10 25 12 2 7 17 1 28 2 141 Melee 5 | . . . . . . . 4 1 . . . . . . . . . . . . Projectile 485 | . 55 7 . 1 77 14 . 15 56 15 10 25 12 2 7 17 1 28 2 141 Critical Strikes 15 | . 1 . . . 2 . . 2 . 1 1 2 1 . . 1 . . . 4 Part Disruptions 1 | . . . . . . . . . 1 . . . . . . . . . . . Damage Taken 9857 | . 618 76 . 14 1438 188 57 234 2047 231 184 239 214 107 132 298 20 484 39 3237 Core 2174 | . 121 13 . 14 163 34 21 18 253 59 . 26 38 . . 34 20 52 . 1308 Absorbed by Shields 8 | . . . . . 8 . . . . . . . . . . . . . . . Ignored by Resistances 786 | . . . . . 6 22 . 14 572 36 50 86 . . . . . . . . Regen/Repaired (Parts) 254 | . 230 . . . . . . . . . . . . . . . 24 . . . Core Remaining (%) 76 | 100 . . . 40 70 . . . . 45 . . 92 . . . . 89 100 . Volleys Fired 357 | 9 62 7 . 9 92 9 4 16 35 12 7 19 7 11 4 9 . 12 13 20 Largest 4 | 2 2 2 . 2 4 4 4 4 4 4 2 4 4 4 4 4 . 4 1 4 Hottest 300 | 70 100 100 . 80 276 219 219 159 202 264 159 264 272 272 234 234 . 144 105 300 Shots Fired 931 | 18 124 14 . 18 287 30 16 64 107 29 10 42 13 29 16 36 . 31 13 34 Gun 740 | 18 124 14 . 9 257 29 16 64 83 7 3 17 4 17 12 27 . 28 . 11 Cannon 138 | . . . . 9 3 . . . 24 13 7 17 9 12 4 9 . . 13 18 Launcher 49 | . . . . . 27 1 . . . 9 . 8 . . . . . . . 4 Special 4 | . . . . . . . . . . . . . . . . . . 3 . 1 Kinetic 293 | 9 40 . . 9 60 5 4 51 52 . . . 7 10 8 18 . 20 . . Thermal 553 | 9 84 14 . 9 200 24 12 13 55 17 10 34 6 19 8 18 . 8 13 . Explosive 49 | . . . . . 27 1 . . . 9 . 8 . . . . . 3 . 1 Electromagnetic 3 | . . . . . . . . . . 3 . . . . . . . . . . Entropic 33 | . . . . . . . . . . . . . . . . . . . . 33 Robot Hit Streak 21 | 4 9 11 . 4 13 6 5 9 13 5 2 21 6 10 . 5 . 5 2 2 Robot Miss Streak 11 | 2 3 3 . 2 8 2 4 2 3 3 1 3 7 3 4 5 . 2 . 11 Penetration Max 1 | . . . . . 1 . . 1 . . . . . 1 . . . 1 . 1 Secondary Targets 7 | . 1 . . . 1 . . 2 . . . . . . . . . 3 . . Max Gunslinging Chain 1 | . 1 . . . 1 . . 1 . . . . . . . . . 1 . . Shots Hit Robots 509 | 10 81 11 . 9 139 14 8 43 75 12 8 28 10 15 . 12 . 16 1 17 Core Hits 288 | 7 29 7 . 6 88 6 . 18 30 11 7 16 8 14 1 6 . 12 1 21 Critical Kills . | . . . . . . . . . . . . . . . . . . . . . Critical Parts Destroyed 8 | . . . . . . . 1 . 1 . . . . . 1 . . 1 . 4 Critical Strikes 26 | 1 2 . . . 3 3 1 1 1 . . 4 . . 1 2 . 1 . 6 Burn 16 | 1 2 . . . 3 3 . 1 . . . 4 . . . 2 . . . . Destroy 3 | . . . . . . . . . 1 . . . . . 1 . . 1 . . Smash 4 | . . . . . . . 1 . . . . . . . . . . . . 3 Detonate 1 | . . . . . . . . . . . . . . . . . . . . 1 Sunder 2 | . . . . . . . . . . . . . . . . . . . . 2 Melee Attacks 50 | . . . . . . . 2 . 6 . 8 . . . . . . . 15 19 Impact 50 | . . . . . . . 2 . 6 . 8 . . . . . . . 15 19 Slashing . | . . . . . . . . . . . . . . . . . . . . . Piercing . | . . . . . . . . . . . . . . . . . . . . . Sneak Attacks 5 | . . . . . . . . . . . 2 . . . . . . . . 3 Combat Hostiles . | . . . . . . . . . . . . . . . . . . . . . Follow-up Attacks . | . . . . . . . . . . . . . . . . . . . . . Damage Inflicted 16590 | 133 1034 133 . 165 4012 321 208 892 1392 970 723 1126 204 501 57 475 . 895 41 3308 Guns 7892 | 133 1034 133 . 38 2608 321 115 892 1011 114 . 279 48 248 57 241 . 436 . 184 Cannons 2458 | . . . . 127 . . . . 381 316 164 450 156 253 . 234 . . 41 336 Explosions 5034 | . . . . . 1404 . . . . 540 242 397 . . . . . 305 . 2146 Melee 1000 | . . . . . . . 93 . . . 317 . . . . . . . . 590 Ramming . | . . . . . . . . . . . . . . . . . . . . . Kinetic 3243 | 45 362 . . 127 483 87 16 724 722 . . . 104 134 57 127 . 255 . . Thermal 6894 | 88 672 133 . 38 2125 234 99 168 670 502 305 729 100 367 . 348 . 181 41 94 Explosive 2906 | . . . . . 1404 . . . . 369 . 397 . . . . . 305 . 431 Electromagnetic 200 | . . . . . . . . . . 99 101 . . . . . . . . . Impact 1000 | . . . . . . . 93 . . . 317 . . . . . . . . 590 Slashing 206 | . . . . . . . . . . . . . . . . . . 154 . 52 Piercing . | . . . . . . . . . . . . . . . . . . . . . Entropic 2141 | . . . . . . . . . . . . . . . . . . . . 2141 Highest Corruption 4 | . . . . . . . . . . . . . . . . . . . . 4 Average Corruption 2 | . . . . . . . . . . . . . . . . . . . . 2 Corruption Purged . | . . . . . . . . . . . . . . . . . . . . . Corruption Blocked . | . . . . . . . . . . . . . . . . . . . . . Effects 1 | . . . . . . . . . . . . . . . . . . . . 1 Parts Rejected 1 | . . . . . . . . . . . . . . . . . . . . 1 Overload Shots 1 | . . . . . . . . . 1 . . . . . . . . . . . Overflow Damage 772 | . . . . . 13 . 33 . . . 74 45 . 4 . . . 130 . 473 Projectiles 166 | . . . . . . . . . . . 7 45 . 4 . . . 50 . 60 Explosions 237 | . . . . . 13 . . . . . 67 . . . . . . 80 . 77 Melee 369 | . . . . . . . 33 . . . . . . . . . . . . 336 Knockbacks 4 | . . . . . . . . . . . . . 1 . . . . . . 3 Impact 3 | . . . . . . . . . . . . . . . . . . . . 3 Kinetic 1 | . . . . . . . . . . . . . 1 . . . . . . . Secondary . | . . . . . . . . . . . . . . . . . . . . . Self-Inflicted Damage 345 | . . . . . 53 . . . . 10 71 . . . . . . . . 211 Shots 7 | . . . . . 2 . . . . 1 2 . . . . . . . . 2 Rammed . | . . . . . . . . . . . . . . . . . . . . . Targets Rammed . | . . . . . . . . . . . . . . . . . . . . . Kicked . | . . . . . . . . . . . . . . . . . . . . . Crushed . | . . . . . . . . . . . . . . . . . . . . . Highest Temperature 868 | 72 307 117 . 63 428 404 382 187 292 403 24 408 344 87 60 152 . 54 228 868 Average Temperature 108 | 34 66 57 . 22 116 142 200 66 80 169 9 143 173 41 36 73 . 18 99 295 Received Heat Transfer 1802 | . 285 36 . 9 348 72 . 81 . 72 63 181 . 9 48 . 9 36 12 541 Effects 33 | . . . . . 7 . . . 1 2 . 2 1 . . . . . . 20 Shutdowns 5 | . . . . . . . . . . . . . . . . . . . . 5 Energy Bleed 11 | . . . . . 2 . . . 1 2 . 2 . . . . . . . 4 Interference 10 | . . . . . 4 . . . . . . . . . . . . . . 6 Matter Decay 1 | . . . . . . . . . . . . . . . . . . . . 1 Short Circuit 1 | . . . . . . . . . . . . . 1 . . . . . . . Damage (minor) 3 | . . . . . 1 . . . . . . . . . . . . . . 2 Damage (core) 2 | . . . . . . . . . . . . . . . . . . . . 2 Siege Activations . | . . . . . . . . . . . . . . . . . . . . . Martial Activations . | . . . . . . . . . . . . . . . . . . . . . Shielding Activations . | . . . . . . . . . . . . . . . . . . . . . Robots Disrupted 1 | . . . . . . . . . . . 1 . . . . . . . . . Combat Hostiles . | . . . . . . . . . . . . . . . . . . . . . Robots Corrupted 6 | . . . . . . . 1 . . 1 . . . . . . . . . 4 Combat Hostiles 2 | . . . . . . . 1 . . 1 . . . . . . . . . . Parts Fried 12 | . . . . . . . 1 . . . . . . . . . . . . 11 Impact Corruptions 13 | . . . . . . . 3 . . . . . . . . . . . . 10 Robots Melted 1 | . . . . . . . . . . . . 1 . . . . . . . . Combat Hostiles 1 | . . . . . . . . . . . . 1 . . . . . . . . Parts Melted 14 | . 5 . . . 4 2 . 1 1 . . . . . . . . 1 . . Heat Transferred 12145 | 333 2098 371 . 111 4144 666 185 370 1382 422 100 814 74 333 . 296 . 259 37 150 Parts Sabotaged . | . . . . . . . . . . . . . . . . . . . . . Parts Stolen 1 | . . . . . . . 1 . . . . . . . . . . . . . Parts Stripped . | . . . . . . . . . . . . . . . . . . . . . Power Chain Reactions 2 | . . . . . . . . . . 1 1 . . . . . . . . . Alert | -11 -10 -10 -10 -9 -8 -7 -7 -7 -7 -6 -6 -6 -6 -5 -5 -5 -5 -4 -4 -3 ------- Run | Yrd Mat Min Exi Min Mat Fac Low Low Dat Pro Fac Low Low Fac Upp Upp War Pro Fac Res Maximum Alert Level 3 | . . . . . 3 1 . . . . . . . . . . . . 2 2 Low Security (%) 67 | 100 100 100 . 100 61 . . . . . 100 . . 100 . . . . . . Level 1 15 | . . . . . 9 100 . . . . . . . . . . . . . 92 Level 2 15 | . . . . . 24 . . . . . . . . . . . . . 100 7 Level 3 2 | . . . . . 4 . . . . . . . . . . . . . . . Level 4 . | . . . . . . . . . . . . . . . . . . . . . Level 5 . | . . . . . . . . . . . . . . . . . . . . . High Security . | . . . . . . . . . . . . . . . . . . . . . Max Security . | . . . . . . . . . . . . . . . . . . . . . Peak Influence 816 | 20 137 67 . 55 816 366 . . . . 86 . . 98 . . . . 521 639 Initial 482 | . . . . . . 366 . . . . 7 . . 65 . . . . 482 267 Average 167 | 4 47 13 . 10 225 289 . . . . 22 . . 64 . . . . 482 293 Influence Increases 4483 | 30 337 107 . 60 1294 63 . 210 . 180 147 195 30 94 60 230 15 380 409 642 Destroy 0b10 Robot/C 2100 | . 240 60 . 40 640 40 . 180 . 160 . 140 20 40 . 100 . 200 . 240 Destroy 0b10 Robot/NC 250 | 30 15 . . 10 105 5 . 5 . . 20 . . 10 . . . 5 5 40 Destroy Leader 434 | . 54 10 . 10 192 10 . 10 . 20 2 10 10 20 . 10 . 10 . 66 Successful Hack 28 | . 13 7 . . . . . . . . . . . . . . . . 8 . Disable Machine 120 | . 15 . . . 30 . . . . . 45 . . . . . . . . 30 Anti-Garrison Action 150 | . . . . . 150 . . . . . . . . . . . . . . . Destroy Structure 456 | . . . . . 132 8 . . . . 20 . . 24 . . . . 36 236 Advance Influence 300 | . . . . . . . . . . . . . . . . . . . 300 . Partial Spotted 45 | . . . . . . . . . . . . . . . . . . . 15 30 Lose Combat Pursuer 600 | . . 30 . . 45 . . 15 . . 60 45 . . 60 120 15 165 45 . Influence Decreases 3844 | 30 337 107 . 60 489 619 249 181 29 168 73 152 55 119 109 96 164 105 188 514 Entered New Map 1229 | . . . . . . 439 93 . 29 . 5 32 25 39 30 6 164 15 108 244 Time Decay 2325 | 30 307 97 . 60 419 180 156 181 . 168 58 120 30 80 79 90 . 70 80 120 Lost Part 290 | . 30 10 . . 70 . . . . . 10 . . . . . . 20 . 150 Squads Dispatched 23 | . 2 . . . 9 2 . . . . 4 . . . . 1 . . . 5 Investigation 6 | . 1 . . . 1 1 . . . . 2 . . . . . . . . 1 Extermination 1 | . . . . . . . . . . . . . . . . . . . . 1 Reinforcement 8 | . 1 . . . 3 1 . . . . 2 . . . . . . . . 1 Assault 5 | . . . . . 4 . . . . . . . . . . 1 . . . . Garrison 2 | . . . . . 1 . . . . . . . . . . . . . . 1 Intercept 1 | . . . . . . . . . . . . . . . . . . . . 1 Searches Triggered . | . . . . . . . . . . . . . . . . . . . . . Construction Impeded 2 | . . . . . . . . . . . 1 . . . . . . . . 1 Haulers Reinforced 1 | . . . . . . 1 . . . . . . . . . . . . . . Active Scanning Responses . | . . . . . . . . . . . . . . . . . . . . . Cargo Convoy Interrupts . | . . . . . . . . . . . . . . . . . . . . . Stealth | -11 -10 -10 -10 -9 -8 -7 -7 -7 -7 -6 -6 -6 -6 -5 -5 -5 -5 -4 -4 -3 --------- Run | Yrd Mat Min Exi Min Mat Fac Low Low Dat Pro Fac Low Low Fac Upp Upp War Pro Fac Res Distress Signals 11 | . 2 . . . 4 1 . . . . 2 . . 1 . . . 1 . . Communications Jammed . | . . . . . . . . . . . . . . . . . . . . . Distress Signals . | . . . . . . . . . . . . . . . . . . . . . Times Spotted 199 | . 18 5 . 2 44 2 2 13 4 8 15 8 1 4 5 13 6 23 4 22 Peak Tracking Total 12 | . 5 3 . 2 5 1 1 4 3 4 9 4 1 3 4 8 6 10 4 12 Tactical Retreats 22 | . . 1 . . 3 . . 1 . . 2 2 . . 3 4 1 4 1 . Traps | -11 -10 -10 -10 -9 -8 -7 -7 -7 -7 -6 -6 -6 -6 -5 -5 -5 -5 -4 -4 -3 ------- Run | Yrd Mat Min Exi Min Mat Fac Low Low Dat Pro Fac Low Low Fac Upp Upp War Pro Fac Res Traps Triggered 3 | . . . . . 1 1 . . . . . . . 1 . . . . . . Indirectly . | . . . . . . . . . . . . . . . . . . . . . Trap Hack Attempts . | . . . . . . . . . . . . . . . . . . . . . Triggered . | . . . . . . . . . . . . . . . . . . . . . Disarmed . | . . . . . . . . . . . . . . . . . . . . . Reprogrammed . | . . . . . . . . . . . . . . . . . . . . . Reused . | . . . . . . . . . . . . . . . . . . . . . Traps Extracted . | . . . . . . . . . . . . . . . . . . . . . Installed 2 | . . . . . . . . 2 . . . . . . . . . . . . Triggered . | . . . . . . . . . . . . . . . . . . . . . Most Traps Carried 3 | . . . . . . . . 3 3 3 3 3 3 3 3 3 3 . . . Machines | -11 -10 -10 -10 -9 -8 -7 -7 -7 -7 -6 -6 -6 -6 -5 -5 -5 -5 -4 -4 -3 ---------- Run | Yrd Mat Min Exi Min Mat Fac Low Low Dat Pro Fac Low Low Fac Upp Upp War Pro Fac Res Machines Disabled 10 | . 1 . . . 3 . . . . . 3 . . . . . 1 . . 2 Max in Single Turn 3 | . 1 . . . 1 . . . . . 3 . . . . . 1 . . 1 Garrison Access 2 | . . . . . 1 . . . . . . . . . . . . . . 1 Machines Repaired . | . . . . . . . . . . . . . . . . . . . . . Machines Dismantled 1 | . . . . . . . . . . . . . . . . . 1 . . . Machines Sabotaged . | . . . . . . . . . . . . . . . . . . . . . Overloaded Fab Kills . | . . . . . . . . . . . . . . . . . . . . . Hacking | -11 -10 -10 -10 -9 -8 -7 -7 -7 -7 -6 -6 -6 -6 -5 -5 -5 -5 -4 -4 -3 --------- Run | Yrd Mat Min Exi Min Mat Fac Low Low Dat Pro Fac Low Low Fac Upp Upp War Pro Fac Res Machines Accessed 35 | . 4 1 1 . 5 2 2 2 . . 6 . . 2 1 . 5 . 1 3 Terminals 18 | . 3 1 . . 4 1 . . . . 6 . . 1 . . . . . 2 Fabricators 2 | . . . . . . 1 . . . . . . . 1 . . . . . . Repair Stations 2 | . 1 . . . . . . . . . . . . . . . . . 1 . Recycling Units . | . . . . . . . . . . . . . . . . . . . . . Scanalyzers 1 | . . . . . 1 . . . . . . . . . . . . . . . Garrison Access 1 | . . . . . . . . . . . . . . . . . . . . 1 Total Hacks 77 | . 15 2 1 . 10 4 2 7 . . 14 . . 4 1 . 10 . 1 6 Successful 41 | . 8 1 1 . 6 1 2 7 . . 1 . . 1 1 . 10 . 1 1 Failed 36 | . 7 1 . . 4 3 . . . . 13 . . 3 . . . . . 5 Catastrophic 14 | . 2 . . . 3 2 . . . . 4 . . 2 . . . . . 1 Database Lockouts . | . . . . . . . . . . . . . . . . . . . . . Manual 39 | . 11 2 1 . 7 . . . . . 14 . . . . . . . . 4 Terminals 42 | . 11 2 . . 7 2 . . . . 14 . . 2 . . . . . 4 Fabricators 4 | . . . . . . 2 . . . . . . . 2 . . . . . . Repair Stations 5 | . 4 . . . . . . . . . . . . . . . . . 1 . Recycling Units . | . . . . . . . . . . . . . . . . . . . . . Scanalyzers 3 | . . . . . 3 . . . . . . . . . . . . . . . Garrison Access 2 | . . . . . . . . . . . . . . . . . . . . 2 Terminal Hacks 27 | . 3 1 1 . . 1 2 7 . . . . . 1 1 . 10 . . . Record 14 | . . . . . . . . 6 . . . . . . . . 8 . . . Part Schematic 4 | . 3 1 . . . . . . . . . . . . . . . . . . Open Door 6 | . . . . . . . 2 1 . . . . . . 1 . 2 . . . Branch Access Points 2 | . . . . . . 1 . . . . . . . 1 . . . . . . Proto ID Catalog 1 | . . . 1 . . . . . . . . . . . . . . . . . Fabricator Hacks . | . . . . . . . . . . . . . . . . . . . . . Repair Station Hacks 5 | . 4 . . . . . . . . . . . . . . . . . 1 . Scan Component 2 | . 2 . . . . . . . . . . . . . . . . . . . Repair 2 | . 2 . . . . . . . . . . . . . . . . . . . Refit 1 | . . . . . . . . . . . . . . . . . . . 1 . Recycling Unit Hacks . | . . . . . . . . . . . . . . . . . . . . . Scanalyzer 3 | . . . . . 3 . . . . . . . . . . . . . . . Insert Component 1 | . . . . . 1 . . . . . . . . . . . . . . . Analyze 1 | . . . . . 1 . . . . . . . . . . . . . . . Retrieve Study 1 | . . . . . 1 . . . . . . . . . . . . . . . Garrison Access Hacks 1 | . . . . . . . . . . . . . . . . . . . . 1 Seal Access 1 | . . . . . . . . . . . . . . . . . . . . 1 Unauthorized Hacks 5 | . 1 . . . 3 . . . . . 1 . . . . . . . . . Terminals 5 | . 1 . . . 3 . . . . . 1 . . . . . . . . . Botnet 5 | . 1 . . . 3 . . . . . 1 . . . . . . . . . Fabricators . | . . . . . . . . . . . . . . . . . . . . . Repair Stations . | . . . . . . . . . . . . . . . . . . . . . Recycling Units . | . . . . . . . . . . . . . . . . . . . . . Scanalyzers . | . . . . . . . . . . . . . . . . . . . . . Garrison Access . | . . . . . . . . . . . . . . . . . . . . . Data Cores Recovered 2 | . . . . . 1 . . . . . . . . 1 . . . . . . Used . | . . . . . . . . . . . . . . . . . . . . . Hacking Detections 22 | . 4 1 . . 5 2 . . . . 6 . . 2 . . . . . 2 Full Trace Events 5 | . 1 . . . . 1 . . . . 2 . . . . . . . . 1 Feedback Events . | . . . . . . . . . . . . . . . . . . . . . Feedback Blocked . | . . . . . . . . . . . . . . . . . . . . . Robot Schematics Acquired . | . . . . . . . . . . . . . . . . . . . . . Robots Built . | . . . . . . . . . . . . . . . . . . . . . Authchips . | . . . . . . . . . . . . . . . . . . . . . Time . | . . . . . . . . . . . . . . . . . . . . . Total Robot Build Rating . | . . . . . . . . . . . . . . . . . . . . . Part Schematics Acquired 5 | . 3 1 . . 1 . . . . . . . . . . . . . . . Parts Built . | . . . . . . . . . . . . . . . . . . . . . Authchips . | . . . . . . . . . . . . . . . . . . . . . Time . | . . . . . . . . . . . . . . . . . . . . . Total Part Build Rating . | . . . . . . . . . . . . . . . . . . . . . Part Studies Acquired . | . . . . . . . . . . . . . . . . . . . . . Parts Repaired 2 | . 2 . . . . . . . . . . . . . . . . . . . Time 52 | . 52 . . . . . . . . . . . . . . . . . . . Parts Recycled . | . . . . . . . . . . . . . . . . . . . . . Recycled Matter . | . . . . . . . . . . . . . . . . . . . . . Retrieved Matter . | . . . . . . . . . . . . . . . . . . . . . Retrieved Components . | . . . . . . . . . . . . . . . . . . . . . Parts Scanalyzed 1 | . . . . . 1 . . . . . . . . . . . . . . . Part Schematics Acquired 1 | . . . . . 1 . . . . . . . . . . . . . . . Parts Damaged . | . . . . . . . . . . . . . . . . . . . . . Bothacking | -11 -10 -10 -10 -9 -8 -7 -7 -7 -7 -6 -6 -6 -6 -5 -5 -5 -5 -4 -4 -3 ------------ Run | Yrd Mat Min Exi Min Mat Fac Low Low Dat Pro Fac Low Low Fac Upp Upp War Pro Fac Res Used RIF Installer . | . . . . . . . . . . . . . . . . . . . . . Robots Hacked . | . . . . . . . . . . . . . . . . . . . . . Non-combat . | . . . . . . . . . . . . . . . . . . . . . Combat . | . . . . . . . . . . . . . . . . . . . . . Robot Hacks Applied . | . . . . . . . . . . . . . . . . . . . . . Relay Couplers Released 1 | . . . . . 1 . . . . . . . . . . . . . . . Machine Destruction 1 | . . . . . 1 . . . . . . . . . . . . . . . Fabnet Peak Effective % . | . . . . . . . . . . . . . . . . . . . . . Robots Rewired . | . . . . . . . . . . . . . . . . . . . . . Allies Hacked . | . . . . . . . . . . . . . . . . . . . . . Hacks Repelled . | . . . . . . . . . . . . . . . . . . . . . Allies | -11 -10 -10 -10 -9 -8 -7 -7 -7 -7 -6 -6 -6 -6 -5 -5 -5 -5 -4 -4 -3 -------- Run | Yrd Mat Min Exi Min Mat Fac Low Low Dat Pro Fac Low Low Fac Upp Upp War Pro Fac Res Total Allies 2 | . . 2 . . . . . . . . . . . . . . . . . . Largest Group 2 | . . 2 1 . . . . . . . . . . . . . . . . . Highest-Rated Group 41 | . . 41 31 . . . . . . . . . . . . . . . . . Highest-Rated Ally 31 | . . 31 31 . . . . . . . . . . . . . . . . . Total Orders . | . . . . . . . . . . . . . . . . . . . . . Ally Attacks . | . . . . . . . . . . . . . . . . . . . . . Total Damage . | . . . . . . . . . . . . . . . . . . . . . Kills . | . . . . . . . . . . . . . . . . . . . . . Allies Corrupted . | . . . . . . . . . . . . . . . . . . . . . Allies Melted . | . . . . . . . . . . . . . . . . . . . . . Intel | -11 -10 -10 -10 -9 -8 -7 -7 -7 -7 -6 -6 -6 -6 -5 -5 -5 -5 -4 -4 -3 ------- Run | Yrd Mat Min Exi Min Mat Fac Low Low Dat Pro Fac Low Low Fac Upp Upp War Pro Fac Res Active Infowar (turns) 890 | 41 609 . . . . . . . . . . . . . . . 56 . . 184 Optics 184 | . . . . . . . . . . . . . . . . . . . . 184 Seismic 650 | 41 609 . . . . . . . . . . . . . . . . . . . Cloaking 171 | . . . . . . . . . . . . . . . . . 56 . . 115 Jamming 29 | . . . . . . . . . . . . . . . . . . . . 29 Robot Analysis Total 154 | . . . . . . . . . 154 . . . . . . . . . . . Derelict Logs Recovered 8 | . . 1 . 1 . . . . . . . 2 . . 2 1 . 1 . . Drone Launches . | . . . . . . . . . . . . . . . . . . . . . Drone Recoveries . | . . . . . . . . . . . . . . . . . . . . . Exploration | -11 -10 -10 -10 -9 -8 -7 -7 -7 -7 -6 -6 -6 -6 -5 -5 -5 -5 -4 -4 -3 ------------- Run | Yrd Mat Min Exi Min Mat Fac Low Low Dat Pro Fac Low Low Fac Upp Upp War Pro Fac Res Turns Passed 9698 | 146 862 468 473 335 2819 375 483 625 513 571 190 248 79 170 237 180 322 171 176 255 Spaces Moved 7688 | 66 309 222 237 152 1177 221 371 456 159 277 281 505 155 297 606 385 782 330 326 374 Core 23 | 4 . . . . . . . . . . . . . . . . . . . 19 Treads 204 | 62 129 . . . 13 . . . . . . . . . . . . . . . Legs 365 | . . . . . . . . . 89 276 . . . . . . . . . . Wheels 3073 | . 180 222 237 152 1164 221 371 456 70 . . . . . . . . . . . Hover 152 | . . . . . . . . . . . . . . . . . . . . 152 Flight 3871 | . . . . . . . . . . 1 281 505 155 297 606 385 782 330 326 203 Fastest Speed 24 | 50 160 200 200 200 145 123 120 120 120 190 34 34 34 34 34 34 34 24 24 24 Average Speed 100 | 153 183 200 200 200 197 145 121 120 191 190 34 34 34 34 34 34 34 32 24 35 Slowest Speed 480 | 160 200 200 200 200 480 190 123 120 330 250 34 34 34 34 34 34 34 34 93 160 Overloaded Moves . | . . . . . . . . . . . . . . . . . . . . . Propulsion Burnouts . | . . . . . . . . . . . . . . . . . . . . . Robots Hopped 18 | . . . . . . . . . . . 2 . . 8 . . 5 3 . . Potential Cave-ins . | . . . . . . . . . . . . . . . . . . . . . Cave-ins Triggered . | . . . . . . . . . . . . . . . . . . . . . Exploration Rate (%) 43 | 3 52 66 61 32 83 8 63 55 79 52 9 56 16 11 53 51 93 53 8 15 Regions Visited 20 Branch Regions 13 Pre-discovered Areas 32 | . . 1 . . . . . 1 28 . . . . . 1 . 1 . . . Known Exits Taken 4 | . . . . . . 1 . . . . . . . 1 . . . 1 1 . Unknown Exits Taken 16 | 1 1 1 1 1 1 . 1 1 1 1 1 1 1 . 1 1 1 . . . Scrap Searched 15 | . . 1 . 1 . . 2 2 . 3 . 2 . . 1 2 . 1 . . Spaces Dug 48 | . . . . . . . . . . . 6 1 . 2 7 6 . . 19 7 Terrain Destroyed 600 | . . . . . 167 7 . 1 . 85 21 35 1 11 11 23 . 89 27 122 Melee 26 | . . . . . . . . . . . 4 . . . . . . . 15 7 Projectile 126 | . . . . . 1 . . 1 . 4 2 3 1 11 11 23 . 22 12 35 AOE 448 | . . . . . 166 7 . . . 81 15 32 . . . . . 67 . 80 Terrain Rammed . | . . . . . . . . . . . . . . . . . . . . . Walls Destroyed . | . . . . . . . . . . . . . . . . . . . . . Machines Disabled . | . . . . . . . . . . . . . . . . . . . . . Actions | -11 -10 -10 -10 -9 -8 -7 -7 -7 -7 -6 -6 -6 -6 -5 -5 -5 -5 -4 -4 -3 --------- Run | Yrd Mat Min Exi Min Mat Fac Low Low Dat Pro Fac Low Low Fac Upp Upp War Pro Fac Res Total 8868 | 89 480 233 237 166 1477 254 391 494 276 302 354 543 169 337 625 410 820 369 394 448 Wait 423 | . 88 . . 3 90 10 . 11 42 . 50 12 1 25 14 15 . 21 35 6 Move 7636 | 65 308 221 236 151 1176 220 370 455 158 276 277 504 154 280 605 384 773 324 325 374 Hop 14 | . . . . . . . . . . . 1 . . 8 . . 3 2 . . Pick Up 83 | 8 12 1 1 2 25 3 1 1 6 1 1 1 . 3 1 . 13 1 . 2 Fast Attach 69 | 7 2 1 . . 26 2 2 2 8 1 . 2 1 3 1 1 2 . 1 7 Attach 47 | . 3 1 . . 7 2 3 . 8 1 3 . 2 1 . . 4 3 . 9 Detach 8 | . . . . . 2 . . . . . 1 . 1 . . . . 3 1 . Swap 64 | . 4 . . . 19 4 5 3 11 2 2 3 2 . . . 3 2 1 3 Drop 106 | . 1 2 . 1 40 4 4 4 2 9 4 2 1 5 . 1 14 1 3 8 Fire 357 | 9 62 7 . 9 92 9 4 16 35 12 7 19 7 11 4 9 . 12 13 20 Melee 50 | . . . . . . . 2 . 6 . 8 . . . . . . . 15 19 Ram . | . . . . . . . . . . . . . . . . . . . . . Kick . | . . . . . . . . . . . . . . . . . . . . . Crush . | . . . . . . . . . . . . . . . . . . . . . Escape Stasis . | . . . . . . . . . . . . . . . . . . . . . Rewire 1 | . . . . . . . . . . . . . . 1 . . . . . . Trap 2 | . . . . . . . . 2 . . . . . . . . . . . . Miscellaneous 8 | . . . . . . . . . . . . . . . . . 8 . . . Route ------- -11/Scrapyard -10/Materials (discovered 2 exits: [*Mat] / *Min) -10/Mines (discovered 2 exits: [*Mat] / *Exi) -10/Exiles -9/Mines -8/Materials (discovered 3 exits: *Fac x3) -7/Factory (discovered 2 exits: *Low x2) -7/Lower Caves -7/Lower Caves (discovered 2 exits: *Fac / [*Dat]) -7/Data Miner -6/Proximity Caves -6/Factory -6/Lower Caves -6/Lower Caves -5/Factory (discovered 6 exits: Fac x2 / *Upp x2 / Ext x2) -5/Upper Caves -5/Upper Caves -5/Warlord -4/Proximity Caves -4/Factory (discovered 2 exits: *Res / Arm) -3/Research (discovered 1 exit: Tes) History --------- Turn | Location | Event 19 | -11/Scrapyard | Discovered new exit (range 15) 147 | -11/Scrapyard | Entered Materials 309 | -10/Materials | Build established: Mutant 508 | -10/Materials | Repaired Lgt. Treads 535 | -10/Materials | Repaired Lgt. Treads 638 | -10/Materials | Discovered new exit (range 9) 751 | -10/Materials | Discovered new exit (range 10) 1009 | -10/Materials | Entered Mines 1047 | -10/Mines | Met a Derelict bent on vengeance 1087 | -10/Mines | Core integrity fell below 50% 1105 | -10/Mines | Found a Scrap Suit stashed away for nefarious purposes 1267 | -10/Mines | Discovered new exit (range 7) 1285 | -10/Mines | A weapon hastily lodged in a ceiling crevice suddenly fell to the ground 1316 | -10/Mines | Learned location of Storage (-9) 1447 | -10/Mines | Learned Materials emergency access door positions 1467 | -10/Mines | Deemed a non-threat by the Exiles lab entrance 1469 | -10/Mines | Discovered new exit (range 5) 1477 | -10/Mines | Entered Exiles 1477 | -10/Exiles | Accompanied by 1 ally 1507 | -10/Exiles | Led the pair of lost Derelicts to a safe place 1531 | -10/Exiles | Met 8R-AWN 1557 | -10/Exiles | Met EX-HEX 1621 | -10/Exiles | Met EX-BIN 1677 | -10/Exiles | Aligned with FarCom system 1679 | -10/Exiles | Given EX-Vault access code 1725 | -10/Exiles | Opened EX-Vault 1741 | -10/Exiles | Found Flying Fortress v7 1782 | -10/Exiles | Warned to stay clear of 0b10 Research branches 1807 | -10/Exiles | Exiles lab attacked by MAIN.C 1932 | -10/Exiles | Discovered new exit (range 10) 1950 | -10/Exiles | Left Exiles lab with Flying Fortress v7 1950 | -10/Exiles | Entered Mines 1963 | -9/Mines | Received a Rocket Launcher from a helpful Derelict 1995 | -9/Mines | Learned 2 Materials zone layouts 2269 | -9/Mines | Discovered new exit (range 7) 2285 | -9/Mines | Entered Materials 2285 | -8/Materials | Evolved 4 slots: Propulsion x1, Utility x1, Weapon x2 2829 | -8/Materials | Build established: Skirmisher 3273 | -8/Materials | Discovered new exit (range 8) 3685 | -8/Materials | Build established: Scavenger-Skirmisher 3892 | -8/Materials | Discovered new exit (range 13) 4116 | -8/Materials | Build established: Skirmisher 4312 | -8/Materials | Discovered new exit (range 15) 4336 | -8/Materials | Lost 5 parts (1p1n1u2w) 4342 | -8/Materials | Destroyed 7 combat bots 5085 | -8/Materials | First assault squad dispatched 5104 | -8/Materials | Entered Factory 5104 | -7/Factory | Evolved 2 slots: Propulsion x1, Utility x1 5202 | -7/Factory | Identified exit to Lower Caves 5479 | -7/Factory | Entered Lower Caves 5564 | -7/Lower Caves | Found Prototype Device 5613 | -7/Lower Caves | Entered a destroyed Warlord outpost 5792 | -7/Lower Caves | Build established: Scavenger-Tank 5944 | -7/Lower Caves | Discovered new exit (range 16) 5962 | -7/Lower Caves | Entered another Lower Caves area 5986 | -7/Lower Caves | Entered an active Warlord outpost 6009 | -7/Lower Caves | Learned location of 1 exit from Research 6009 | -7/Lower Caves | Learned Armory terminal intel 6070 | -7/Lower Caves | Discovered new exit (range 13) 6577 | -7/Lower Caves | Discovered new exit (range 9) 6587 | -7/Lower Caves | Entered Data Miner 6587 | -7/Data Miner | Discovered new exit (range 6) 6610 | -7/Data Miner | Met Data Miner 6641 | -7/Data Miner | Interfaced with the Data Conduit 6776 | -7/Data Miner | Found Exp. Thermal Shield 6782 | -7/Data Miner | Lost 7 parts (1p3n2u1w) 6836 | -7/Data Miner | Lost 4 parts (1n3w) 6879 | -7/Data Miner | Lost 3 parts (1n1u1w) 6949 | -7/Data Miner | Found Exp. Thermal Shield 7100 | -7/Data Miner | Entered Proximity Caves 7241 | -6/Proximity Caves | Build established: Scavenger-Gunner 7323 | -6/Proximity Caves | Core integrity fell below 50% 7637 | -6/Proximity Caves | Build established: Scavenger-Tank 7638 | -6/Proximity Caves | Discovered new exit (range 10) 7645 | -6/Proximity Caves | Attracted the attention of an 0b10 checkpoint 7671 | -6/Proximity Caves | Entered Factory 7671 | -6/Factory | Evolved 2 slots: Propulsion x2 7672 | -6/Factory | Loaded intel: 300 machine locations 7845 | -6/Factory | Discovered new exit (range 12) 7861 | -6/Factory | Entered Lower Caves 7862 | -6/Lower Caves | Learned 4 Factory zone layouts 7969 | -6/Lower Caves | Build established: Scavenger-Mutant 8021 | -6/Lower Caves | Attracted the attention of an 0b10 checkpoint 8098 | -6/Lower Caves | Discovered new exit (range 15) 8102 | -6/Lower Caves | Learned location of 2 exits from Factory 8109 | -6/Lower Caves | Entered another Lower Caves area 8156 | -6/Lower Caves | Discovered new exit (range 8) 8188 | -6/Lower Caves | Entered Factory 8188 | -5/Factory | Evolved 2 slots: Utility x2 8189 | -5/Factory | Identified exit to Factory 8191 | -5/Factory | Loaded intel: 264 machine locations 8234 | -5/Factory | Identified exit to Upper Caves 8234 | -5/Factory | Identified exit to Extension 8358 | -5/Factory | Entered Upper Caves 8363 | -5/Upper Caves | Spotted B-75 Beast 8521 | -5/Upper Caves | Attracted the attention of an 0b10 checkpoint 8593 | -5/Upper Caves | Discovered new exit (range 5) 8595 | -5/Upper Caves | Entered another Upper Caves area 8647 | -5/Upper Caves | Build established: Scavenger-Gunner 8723 | -5/Upper Caves | Attracted the attention of an 0b10 outpost 8769 | -5/Upper Caves | Discovered new exit (range 15) 8771 | -5/Upper Caves | Learned Factory emergency access door positions 8775 | -5/Upper Caves | Entered Warlord 8788 | -5/Warlord | Discovered new exit (range 9) 8845 | -5/Warlord | Found Prototype Special Weapon 8847 | -5/Warlord | Found Prototype Special Weapon 8849 | -5/Warlord | Found Prototype Special Weapon 8850 | -5/Warlord | Identified RU-N14's Throwing Claymores v3 (x3) 8853 | -5/Warlord | Found RU-N14's Throwing Claymores v3 8892 | -5/Warlord | Learned 4 Armory zone layouts 8892 | -5/Warlord | Learned 4 Access zone layouts 8892 | -5/Warlord | Learned 4 Testing zone layouts 8892 | -5/Warlord | Learned Research security intel 8892 | -5/Warlord | Learned Armory garrison access intel 8892 | -5/Warlord | Learned Research scanalyzer intel 8941 | -5/Warlord | Found Exp. Cloaking Device 8951 | -5/Warlord | Found Prototype Hackware 8951 | -5/Warlord | Identified System Mapper 8972 | -5/Warlord | Build established: Hacker-Gunner 8991 | -5/Warlord | Visited the Vortex Lab 8994 | -5/Warlord | Found Prototype Energy Gun 8996 | -5/Warlord | Found Prototype Energy Gun 8997 | -5/Warlord | Found Prototype Energy Cannon 8999 | -5/Warlord | Found Prototype Energy Cannon 9000 | -5/Warlord | Found Prototype Energy Cannon 9001 | -5/Warlord | Found Prototype Energy Cannon 9004 | -5/Warlord | Found Prototype Launcher 9006 | -5/Warlord | Warlord's base attacked by MAIN.C 9037 | -5/Warlord | Met Warlord 9080 | -5/Warlord | Opened side exit 9097 | -5/Warlord | Entered Proximity Caves 9172 | -4/Proximity Caves | Attracted the attention of an 0b10 checkpoint 9205 | -4/Proximity Caves | Spotter reported a threat 9223 | -4/Proximity Caves | Spotter reported a threat 9223 | -4/Proximity Caves | Spotted B-86 Titan 9263 | -4/Proximity Caves | Learned 12 Research zone layouts 9266 | -4/Proximity Caves | Discovered exit to Factory (range 7) 9268 | -4/Proximity Caves | Entered Factory 9268 | -4/Factory | Evolved 2 slots: Power x1, Propulsion x1 9269 | -4/Factory | Identified exit to Research 9269 | -4/Factory | Identified exit to Armory 9271 | -4/Factory | Loaded intel: 226 machine locations 9444 | -4/Factory | Entered Research 9444 | -3/Research | Evolved 2 slots: Propulsion x1, Utility x1 9445 | -3/Research | Identified exit to Testing 9448 | -3/Research | Loaded intel: 112 machine locations 9449 | -3/Research | Loaded intel: 6 scanalyzer locations 9587 | -3/Research | Intercept squad dispatched 9614 | -3/Research | Spotted Tracker 9615 | -3/Research | Spotted Tracker 9620 | -3/Research | Identified Vortex Driver (x2) 9622 | -3/Research | Identified Vortex Cannon (x2) 9629 | -3/Research | Destroyed Tracker 9651 | -3/Research | Garrison activated, responded to threat 9655 | -3/Research | Identified Vortex Rail (x2) 9670 | -3/Research | Core integrity fell below 50% 9678 | -3/Research | Identified Vortex Catalyst Activator 9685 | -3/Research | Destroyed Tracker 9687 | -3/Research | Released all parts (4) 9690 | -3/Research | Spotted B-86 Titan 9694 | -3/Research | Core integrity fell below 20% 9699 | -3/Research | Spotted Combat Programmer 9699 | -3/Research | Destroyed by Combat Programmer with EMDS Last Messages --------------- 09685_ Exp. Cloaking Device destroyed. 09685_ U-05 Engineer destroyed. 09685_ Vortex Catalyst Activator implodes. 09685_ Destroyed Prototype Energy Gun. 09685_ Tracker destroyed. 09685_ K-01 Serf destroyed. 09686_ K-01 Serf collects debris. 09686_ Penetrated by Slug. 09687_ Mic. Antimatter Reactor destroyed. 09687_ Released Adv. Visual Processing Unit. 09687_ Released Hacking Suite. 09687_ Released Lrg. Storage Unit. 09687_ Released Mak. Hacking Suite. 09688_ Penetrated by Slug. 09688_ Slug penetrates Wall. 09693_ Critical hit (Meltdown: +340). 09698_ S-43 Plague destroyed. 09698_ Destroyed Xenon Bombardment Thruster. 09698_ S-43 Plague destroyed. 09699_ Penetrated by EMDS Slug. Map ----- +----------------------------------------------------+ | | | ?????????????????????????????????????????????????? | | ?????????????????????????????????????????????????? | | ?????????????????????????????????????????????????? | | ?????????????????????????????????????????????????? | | ?????????????????????????????????????????????????? | | ?????????????????????????????????????????????????? | | ""???????????????????????????????????????????????? | | ""???????????????????????????????????????????????? | | "Y??????????????????"""??????????????????????????? | | ""??????????????????"T???????????????????????????? | | ""??????????????????"""??????????????????????????? | | ?????????????????????????????????????????????????? | | ?????????????????????????????????????????????????? | | ??????????????#########+#############+####???????? | | ?????????????? !]] #???????? | | ?????????????? !]] #???????? | | ??????????????? !] ###?????? | | ??????????????? " BB#?????? | | ???????????? T ! BB#?????? | | ???????????? " "#"?????? | | ??????????? ** #####???? | | ??????????? *! ????? | | ?????????? [% #???????? | | ?????????? %= [ % #???????? | | ?????????? % % @ p #???????? | | ?????????? ################ #??"""??? | | ????????????"""??????????# = " #??"""??? | | ????????????"""??????????# +% +??"""??? | | ????????????"""??????????# ### ###???????? | | ?????????????????????????# ##? #?????????? | | ?????????w????? ???????# #???#?????????? | | ?????????????? ????# # g ##????????????? | | ????????????""" ????# "#"Y" " ????? | | ????????????""" ???##" !* ! " ????? | | ??????????? """ #####""" "" ""h"""""""???? | | ??????????? p "" ???? | | ??????????? = =["" ????? | | ??????????? =%"" ????? | | ????????????""" "" =! %*" ????? | | ????????? ??""" """" =! ! " ???? | | ????????? """ """" [%=! =[ "?? ??? | | ????????? %" """""?????? | | ????????? [|%[ = "#??????? | | ???????? ! #???????? | | ???????? % #???????? | | ???????? #???????? | | ????????????### ######## ##"#"""" # #???????" | | ??????????????# ???????# #? ?###?#" #???????? | | ??????????????# ???????# #? ??????# #???????" | +----------------------------------------------------+ Best States ------------- Heat Dissipation 78 Energy Generation 49 Energy Capacity 660 Matter Stores 300 Matter Capacity 300 Sight Range 20 Terrain Scan Density 10 Jamming Range 14 Cloak Strength 4 Armor Coverage 225 Resistance: TH 30 Evasion (%) 65 Targeting Accuracy 5 Recoil Reduction 4 Particle Charging 25 Offensive Hacking 41 Defensive Hacking 11 Authchip Count 1 Trap Extractor Capacity 4 Item Schematics ----------------- Hcp. Storage Unit | -10/Materials | Hacked Lrg. Storage Unit | -10/Materials | Hacked Huge Storage Unit | -10/Materials | Hacked Med. Storage Unit | -10/Mines | Hacked Plasma Cutter | -8/Materials | Scanalyzed Robot Schematics ------------------ None Fabricated ------------ Nothing Repaired ---------- Lgt. Treads | 8% | -10/Materials Lgt. Treads | 27% | -10/Materials Studied --------- None Alien Tech Used ----------------- None Achievements -------------- None Challenges ------------ None Game ------ Seed RegenerativeShadeFacilitator Manual? 0 Play Time 01:54:37 Cumulative 344.5 hours Start 2026.07.11 @ 02:57:23 End 2026.07.11 @ 19:13:03 Sessions 7 Manual Loads 0 Difficulty Rogue Special Mode None Game No. 174 Rogue 174 Adventurer 0 Explorer 0 Win Type - Total 7 Types 4/0/1/1/0/0/0/1/0/0 Lore% 69 Gallery% 72 Achievement% 62 Wizard Run 0 Options --------- Layout 1 ASCII 0 Keyboard 0 Movement Mouse Keybinds 0 Fullscreen 1 Font 18/SmallcapsGlow Map View 54x44 Zoom Use 0% Tactical HUD 1 Map Filters NONE Filters NONE Steam 0 RUN: c524f8f5-28cf-4ea4-be73-413475263e84